[Event "Winter Paracin-GM 2019"]
[Site "Paracin"]
[Date "2019.02.03"]
[Round "5"]
[White "Lazic, Miroljub"]
[Black "Lajthajm, Borko"]
[Result "1/2-1/2"]
[ECO "A46"]
[WhiteElo "2458"]
[BlackElo "2431"]
[Annotator "ChessBase"]
[PlyCount "22"]
[EventDate "2019.01.31"]
[EventType "tourn"]
[EventCountry "SRB"]
[SourceTitle "playchess.com"]
[Source "ChessBase"]
[SourceQuality "1"]
[TimeControl "40/5400+30:900+30"]

1. d4 Nf6 2. Nf3 e6 3. e3 b6 4. Nbd2 Bb7 5. Bd3 d5 6. O-O Nbd7 7. Qe2 c5 8. c3 cxd4 9. exd4 Be7 10. Re1 Qc7 11. a4 a6 1/2-1/2

[Event "Winter Paracin-GM 2019"]
[Site "Paracin"]
[Date "2019.02.03"]
[Round "5"]
[White "Oglaza, Oskar"]
[Black "Raja Rithvik R"]
[Result "1-0"]
[ECO "C45"]
[WhiteElo "2320"]
[BlackElo "2431"]
[Annotator "NA RC"]
[PlyCount "117"]
[EventDate "2019.01.31"]
[EventType "tourn"]
[EventCountry "SRB"]
[SourceTitle "playchess.com"]
[Source "ChessBase"]
[SourceQuality "1"]
[TimeControl "40/5400+30:900+30"]

1. e4 {[%emt 0:00:00]} e5 {[%emt 0:00:00]} 2. Nf3 {[%emt 0:00:00]} Nc6 {[%emt 0:00:00]} 3. d4 {[%emt 0:00:00]} exd4 {[%emt 0:00:00]} 4. Nxd4 {[%emt 0:00:00]} Bc5 {[%emt 0:00:00]} 5. Nb3 {[%emt 0:00:06]} Bb6 {[%emt 0:00:00]} 6. Nc3 {[%emt 0:00:08]} Nf6 {[%emt 0:00:16]} 7. Qe2 {[%emt 0:00:21] C45: Scotch Game} O-O {[%emt 0:00:39]} 8. Be3 {[%emt 0:00:27]} (8. Bg5 Nd4 9. Qd2 Nxb3 10. axb3 h6 11. Be3 Bxe3 12. Qxe3 d5 13. O-O-O c6 14. exd5 cxd5 {1-0 (40) Amin,B (2686)-Safarli,E (2676) Hoogeveen 2018}) 8... d5 {[%emt 0:00:06] LiveBook: 17 Games} 9. O-O-O $1 {[%emt 0:00:52]} d4 {[%emt 0:00:05]} 10. Bg5 {[%emt 0:00:41]} Bg4 $146 {[%emt 0:00:05]} ({Predecessor:} 10... h6 11. Bh4 Bg4 12. f3 Be6 {½-½ (60) Kudr,R (2272)-Cvak,R (2237) ICCF email 2014}) 11. f3 {[%emt 0:01:44]} Be6 {[%emt 0:00:07]} 12. Kb1 {[%emt 0:14:21]} h6 {[%emt 0:00:06]} 13. Bh4 {[%emt 0:15:02]} Re8 {[%emt 0:00:21]} 14. Qe1 {[%emt 0:01:23]} Qe7 {[%emt 0:08:36]} ({Predecessor:} 14... a6) 15. Ne2 {[%emt 0:11:59]} Bxb3 {[%emt 0:12:36]} 16. axb3 {[%emt 0:00:56]} a5 {[%emt 0:00:06]} 17. Ng3 {[%emt 0:02:48]} a4 {[%emt 0:00:18]} 18. Nf5 {[%emt 0:15:34]} Qe5 {[%emt 0:00:18]} 19. Bc4 {[%emt 0:04:27]} axb3 {[%emt 0:02:40]} 20. cxb3 {[%emt 0:00:16]} Ra5 {[%emt 0:09:45]} 21. b4 {[%emt 0:04:22]} Ra4 {[%emt 0:13:08]} 22. Bg3 {[%emt 0:00:28]} Qxf5 {[%emt 0:00:05]} 23. exf5 $18 {[%emt 0:00:10]} Rxe1 {[%emt 0:00:02]} 24. Bxe1 {[%emt 0:01:10]} Ne7 {[%emt 0:02:07]} 25. Bb3 {[%emt 0:02:09]} Ra8 {[%emt 0:00:02]} 26. g4 {[%emt 0:00:10]} Ned5 {[%emt 0:00:52]} 27. Bf2 {[%emt 0:01:52]} Ne3 {[%emt 0:00:20]} 28. Rd2 {[%emt 0:03:32]} Re8 {[%emt 0:00:41]} 29. Re1 {[%emt 0:04:59]} Kf8 {[%emt 0:00:03]} 30. Kc1 {[%emt 0:01:29]} c5 {[%emt 0:05:49]} 31. bxc5 {[%emt 0:06:05]} Ba5 {[%emt 0:00:07]} 32. Ree2 {[%emt 0:01:44]} Bxd2+ {[%emt 0:00:21]} 33. Rxd2 {[%emt 0:00:06]} Re5 {[%emt 0:01:07]} 34. Rxd4 {[%emt 0:00:46]} Rxc5+ {[%emt 0:00:14]} 35. Kb1 {[%emt 0:02:25]} Re5 {[%emt 0:00:33]} 36. Rb4 {[%emt 0:01:44]} Nf1 {[%emt 0:02:40]} 37. Rxb7 {[%emt 0:01:40]} Nd2+ {[%emt 0:00:15]} 38. Kc2 {[%emt 0:00:04]} Nxf3 {[%emt 0:00:19]} 39. Rxf7+ {[%emt 0:01:51]} Ke8 {[%emt 0:00:01]} 40. Ba7 {[%emt 0:00:00]} Re2+ {[%emt 0:00:00]} 41. Kc3 {[%emt 0:04:18]} Ne4+ {[%emt 0:18:03]} 42. Kd3 {[%emt 0:01:29]} Rxb2 {[%emt 0:03:58]} 43. Rb7 {[%emt 0:00:46]} Kf8 {[%emt 0:02:52]} 44. Kxe4 {[%emt 0:00:57]} Nd2+ {[%emt 0:02:23]} 45. Kd3 {[%emt 0:04:06]} Nxb3 {[%emt 0:00:58]} 46. Kc3 {[%emt 0:00:50]} Rxh2 {[%emt 0:00:05]} 47. Kxb3 {[%emt 0:03:35]} Rh3+ {[%emt 0:03:02]} 48. Kc2 {[%emt 0:01:43]} Rg3 {[%emt 0:05:48]} 49. Rb4 {[%emt 0:00:07]} Kf7 {[%emt 0:01:46]} 50. Kd2 {[%emt 0:01:34]} h5 {[%emt 0:00:27]} 51. Rb7+ {[%emt 0:00:18]} Kf8 {[%emt 0:01:23]} 52. gxh5 {[%emt 0:00:14]} Rg5 {[%emt 0:00:19]} 53. h6 {[%emt 0:00:16]} gxh6 {[%emt 0:00:23]} 54. f6 {[%emt 0:00:07]} Rf5 {[%emt 0:00:17]} 55. Bd4 {[%emt 0:00:05]} h5 {[%emt 0:00:11]} 56. Rh7 {[%emt 0:00:10]} Kg8 {[%emt 0:00:09]} 57. Rg7+ {[%emt 0:00:14]} Kf8 {[%emt 0:00:05]} 58. Ke3 {[%emt 0:00:12]} Ra5 {[%emt 0:00:22]} 59. Ke4 {[%emt 0:00:11]} 1-0